[Event "FIDE Women's Grand Swiss 2023"]
[Site "Villa Marina, Douglas, Isle of Man, Isle Of Man"]
[Date "2023.11.03"]
[Round "9.18"]
[White "Terbe, Julianna"]
[Black "Roebers, Eline"]
[Result "1-0"]
[TimeControl "40/90 + 30 + 30s/move"]
[WhiteFideId "708780"]
[BlackFideId "1058401"]
[WhiteElo "2266"]
[BlackElo "2390"]

1. d4 {[%clk 01:30:54]} {[%emt 00:00:05]} Nf6 {[%clk 01:30:57]} {[%emt
00:00:03]} 2. Nf3 {[%clk 01:31:17]} {[%emt 00:00:08]} g6 {[%clk 01:31:19]}
{[%emt 00:00:08]} 3. Bf4 {[%clk 01:31:43]} {[%emt 00:00:04]} Bg7 {[%clk
01:31:45]} {[%emt 00:00:04]} 4. e3 {[%clk 01:32:07]} {[%emt 00:00:05]} O-O
{[%clk 01:31:45]} {[%emt 00:00:31]} 5. Be2 {[%clk 01:32:32]} {[%emt 00:00:05]}
d6 {[%clk 01:32:11]} {[%emt 00:00:03]} 6. h3 {[%clk 01:32:57]} {[%emt
00:00:06]} b6 {[%clk 01:32:08]} {[%emt 00:00:33]} 7. O-O {[%clk 01:32:05]}
{[%emt 00:01:21]} Bb7 {[%clk 01:32:29]} {[%emt 00:00:09]} 8. a4 {[%clk
01:32:28]} {[%emt 00:00:07]} a5 {[%clk 01:30:15]} {[%emt 00:02:45]} 9. Nbd2
{[%clk 01:27:44]} {[%emt 00:05:14]} Nbd7 {[%clk 01:30:26]} {[%emt 00:00:19]} 10.
c3 {[%clk 01:28:02]} {[%emt 00:00:12]} Qe8 {[%clk 01:26:07]} {[%emt 00:04:49]}
11. Bh2 {[%clk 01:24:40]} {[%emt 00:03:52]} e5 {[%clk 01:25:58]} {[%emt
00:00:38]} 12. Qb3 {[%clk 01:21:55]} {[%emt 00:03:16]} Qe7 {[%clk 01:22:52]}
{[%emt 00:03:35]} 13. dxe5 {[%clk 01:16:17]} {[%emt 00:06:09]} dxe5 {[%clk
01:23:03]} {[%emt 00:00:19]} 14. Rad1 {[%clk 01:16:41]} {[%emt 00:00:05]} Rad8
{[%clk 01:19:38]} {[%emt 00:03:56]} 15. Bc4 {[%clk 01:13:48]} {[%emt 00:03:22]}
h6 {[%clk 01:16:34]} {[%emt 00:03:34]} 16. Qc2 {[%clk 01:11:50]} {[%emt
00:02:29]} Kh7 {[%clk 01:16:02]} {[%emt 00:01:01]} 17. e4 {[%clk 01:06:20]}
{[%emt 00:06:00]} Nh5 {[%clk 01:12:41]} {[%emt 00:03:51]} 18. Rfe1 {[%clk
01:06:44]} {[%emt 00:00:06]} Nc5 {[%clk 01:09:10]} {[%emt 00:04:02]} 19. b4
{[%clk 01:02:14]} {[%emt 00:04:59]} axb4 {[%clk 01:02:45]} {[%emt 00:06:55]} 20.
cxb4 {[%clk 01:02:39]} {[%emt 00:00:06]} Na6 {[%clk 01:03:07]} {[%emt
00:00:07]} 21. b5 {[%clk 00:56:53]} {[%emt 00:06:17]} Nc5 {[%clk 01:02:56]}
{[%emt 00:00:41]} 22. Ra1 {[%clk 00:56:56]} {[%emt 00:00:27]} Nf4 {[%clk
00:56:28]} {[%emt 00:06:57]} 23. Nb3 {[%clk 00:49:01]} {[%emt 00:08:26]} Rd7
{[%clk 00:50:24]} {[%emt 00:06:33]} 24. a5 {[%clk 00:46:07]} {[%emt 00:03:25]}
Nxb3 {[%clk 00:49:24]} {[%emt 00:01:30]} 25. Qxb3 {[%clk 00:44:05]} {[%emt
00:02:31]} bxa5 {[%clk 00:49:38]} {[%emt 00:00:16]} 26. Rxa5 {[%clk 00:42:10]}
{[%emt 00:02:25]} Qf6 {[%clk 00:48:48]} {[%emt 00:01:20]} 27. Qe3 {[%clk
00:36:03]} {[%emt 00:06:37]} g5 {[%clk 00:46:09]} {[%emt 00:03:09]} 28. Ra7
{[%clk 00:33:50]} {[%emt 00:02:44]} Rb8 {[%clk 00:44:49]} {[%emt 00:01:50]} 29.
h4 {[%clk 00:28:02]} {[%emt 00:06:18]} Kg8 {[%clk 00:36:47]} {[%emt 00:08:31]}
30. hxg5 {[%clk 00:26:40]} {[%emt 00:01:53]} hxg5 {[%clk 00:37:10]} {[%emt
00:00:06]} 31. Bg3 {[%clk 00:26:27]} {[%emt 00:00:43]} Qe7 {[%clk 00:28:15]}
{[%emt 00:09:25]} 32. Rc1 {[%clk 00:18:22]} {[%emt 00:08:35]} Bf6 {[%clk
00:24:20]} {[%emt 00:04:26]} 33. Nh2 {[%clk 00:15:36]} {[%emt 00:03:16]} Rd4
{[%clk 00:23:26]} {[%emt 00:01:23]} 34. Ng4 {[%clk 00:15:10]} {[%emt 00:00:57]}
Kg7 {[%clk 00:22:29]} {[%emt 00:01:26]} 35. f3 {[%clk 00:11:02]} {[%emt
00:04:39]} Qc5 {[%clk 00:18:28]} {[%emt 00:04:30]} 36. Ra2 {[%clk 00:11:22]}
{[%emt 00:00:10]} Rbd8 {[%clk 00:15:24]} {[%emt 00:03:34]} 37. Bf1 {[%clk
00:10:08]} {[%emt 00:01:45]} Qb6 {[%clk 00:10:36]} {[%emt 00:05:17]} 38. Bf2
{[%clk 00:09:45]} {[%emt 00:00:53]} Be7 {[%clk 00:02:13]} {[%emt 00:08:53]} 39.
Qc3 {[%clk 00:07:06]} {[%emt 00:03:08]} Qe6 {[%clk 00:01:53]} {[%emt 00:00:51]}
40. Ra7 {[%clk 00:04:23]} {[%emt 00:03:14]} Rd1 {[%clk 00:02:00]} {[%emt
00:00:22]} 41. Rxd1 {[%clk 00:01:55]} {[%emt 00:02:58]} Rxd1 {[%clk 00:02:25]}
{[%emt 00:00:05]} 42. Qc2 {[%clk 00:29:29]} {[%emt 00:02:56]} Rxf1+ {[%clk
00:30:40]} {[%emt 00:02:14]} 43. Kxf1 {[%clk 00:27:33]} {[%emt 00:02:26]} 1-0

[Event "FIDE Women's Grand Swiss 2023"]
[Site "Villa Marina, Douglas, Isle of Man, Isle Of Man"]
[Date "2023.11.03"]
[Round "9.19"]
[White "Savitha, Shri B"]
[Black "Kiolbasa, Oliwia"]
[Result "0-1"]
[TimeControl "40/90 + 30 + 30s/move"]
[WhiteFideId "35061887"]
[BlackFideId "1154613"]
[WhiteElo "2375"]
[BlackElo "2375"]

1. e4 {[%clk 01:30:57]} {[%emt 00:00:03]} e5 {[%clk 01:30:51]} {[%emt
00:00:09]} 2. Nf3 {[%clk 01:30:31]} {[%emt 00:00:56]} Nc6 {[%clk 01:31:09]}
{[%emt 00:00:12]} 3. Bc4 {[%clk 01:30:48]} {[%emt 00:00:13]} Nf6 {[%clk
01:31:11]} {[%emt 00:00:29]} 4. Ng5 {[%clk 01:30:48]} {[%emt 00:00:30]} d5
{[%clk 01:31:07]} {[%emt 00:00:34]} 5. exd5 {[%clk 01:31:10]} {[%emt 00:00:08]}
Na5 {[%clk 01:31:02]} {[%emt 00:00:35]} 6. Bb5+ {[%clk 01:30:36]} {[%emt
00:01:04]} c6 {[%clk 01:30:41]} {[%emt 00:00:51]} 7. dxc6 {[%clk 01:31:01]}
{[%emt 00:00:05]} bxc6 {[%clk 01:31:04]} {[%emt 00:00:07]} 8. Bd3 {[%clk
01:31:23]} {[%emt 00:00:07]} Nd5 {[%clk 01:30:30]} {[%emt 00:01:04]} 9. h4
{[%clk 01:31:36]} {[%emt 00:00:17]} Nf4 {[%clk 01:21:22]} {[%emt 00:09:38]} 10.
Bf1 {[%clk 01:30:45]} {[%emt 00:01:21]} h6 {[%clk 01:09:22]} {[%emt 00:12:31]}
11. Ne4 {[%clk 01:31:11]} {[%emt 00:00:04]} c5 {[%clk 01:00:14]} {[%emt
00:09:37]} 12. d3 {[%clk 01:30:07]} {[%emt 00:01:35]} Ne6 {[%clk 00:56:04]}
{[%emt 00:04:39]} 13. Nbc3 {[%clk 01:25:06]} {[%emt 00:05:31]} Be7 {[%clk
00:55:25]} {[%emt 00:01:09]} 14. Be3 {[%clk 01:07:17]} {[%emt 00:18:19]} Rb8
{[%clk 00:49:07]} {[%emt 00:06:49]} 15. b3 {[%clk 01:03:59]} {[%emt 00:03:48]}
Nc6 {[%clk 00:41:54]} {[%emt 00:07:42]} 16. Na4 {[%clk 00:58:31]} {[%emt
00:05:58]} O-O {[%clk 00:40:43]} {[%emt 00:01:42]} 17. g4 {[%clk 00:58:28]}
{[%emt 00:00:33]} Bxh4 {[%clk 00:36:18]} {[%emt 00:04:55]} 18. Naxc5 {[%clk
00:57:11]} {[%emt 00:01:47]} Nf4 {[%clk 00:36:23]} {[%emt 00:00:24]} 19. c3
{[%clk 00:42:49]} {[%emt 00:14:52]} f5 {[%clk 00:33:28]} {[%emt 00:03:25]} 20.
gxf5 {[%clk 00:42:51]} {[%emt 00:00:28]} Bxf5 {[%clk 00:33:03]} {[%emt
00:00:55]} 21. Bxf4 {[%clk 00:40:14]} {[%emt 00:03:07]} exf4 {[%clk 00:30:06]}
{[%emt 00:03:27]} 22. Bh3 {[%clk 00:39:53]} {[%emt 00:00:51]} f3 {[%clk
00:20:48]} {[%emt 00:09:49]} 23. Bxf5 {[%clk 00:32:52]} {[%emt 00:07:31]} Rxf5
{[%clk 00:21:08]} {[%emt 00:00:10]} 24. d4 {[%clk 00:31:34]} {[%emt 00:01:48]}
Be7 {[%clk 00:15:51]} {[%emt 00:05:47]} 25. Ng3 {[%clk 00:21:48]} {[%emt
00:10:15]} Rf7 {[%clk 00:13:09]} {[%emt 00:03:12]} 26. Nce4 {[%clk 00:21:03]}
{[%emt 00:01:16]} Qa5 {[%clk 00:12:59]} {[%emt 00:00:39]} 27. Rh5 {[%clk
00:18:59]} {[%emt 00:02:33]} Qa6 {[%clk 00:09:07]} {[%emt 00:04:23]} 28. d5
{[%clk 00:12:28]} {[%emt 00:07:02]} Nb4 {[%clk 00:09:15]} {[%emt 00:00:22]} 29.
c4 {[%clk 00:12:08]} {[%emt 00:00:50]} Bf6 {[%clk 00:07:28]} {[%emt 00:02:16]}
30. Nxf6+ {[%clk 00:07:55]} {[%emt 00:04:43]} Qxf6 {[%clk 00:07:55]} {[%emt
00:00:03]} 31. Kf1 {[%clk 00:08:17]} {[%emt 00:00:08]} Nd3 {[%clk 00:06:47]}
{[%emt 00:01:39]} 32. Rb1 {[%clk 00:07:05]} {[%emt 00:01:42]} Qd4 {[%clk
00:05:11]} {[%emt 00:02:06]} 33. Qd2 {[%emt 00:00:58]} Re8 {[%clk 00:05:32]} 34.
Rh2 {[%clk 00:05:05]} {[%emt 00:02:10]} Re5 {[%clk 00:05:09]} {[%emt 00:00:53]}
35. Rd1 {[%clk 00:01:18]} {[%emt 00:04:17]} Rfe7 {[%clk 00:05:35]} {[%emt
00:00:05]} 36. Kg1 {[%clk 00:00:50]} {[%emt 00:00:58]} Re1+ {[%clk 00:04:49]}
{[%emt 00:01:16]} 37. Nf1 {[%clk 00:01:19]} Qg4+ {[%clk 00:03:05]} {[%emt
00:02:13]} 38. Kh1 {[%clk 00:01:45]} {[%emt 00:00:04]} Rxd1 {[%clk 00:03:23]}
{[%emt 00:00:12]} 39. Qxd1 {[%clk 00:02:14]} {[%emt 00:00:01]} Re1 {[%clk
00:03:16]} {[%emt 00:00:37]} 40. Qxe1 {[%clk 00:00:55]} {[%emt 00:01:49]} Nxe1
{[%clk 00:03:40]} {[%emt 00:00:06]} 41. Ne3 {[%clk 00:23:17]} {[%emt 00:08:08]}
Qd4 {[%clk 00:33:17]} {[%emt 00:00:53]} 42. Rh5 {[%clk 00:22:47]} {[%emt
00:01:00]} Nd3 {[%clk 00:33:03]} {[%emt 00:00:45]} 43. Kg1 {[%clk 00:20:20]}
{[%emt 00:02:57]} Qb2 {[%clk 00:32:30]} {[%emt 00:01:02]} 0-1

[Event "FIDE Women's Grand Swiss 2023"]
[Site "Villa Marina, Douglas, Isle of Man, Isle Of Man"]
[Date "2023.11.03"]
[Round "9.20"]
[White "Divya, Deshmukh"]
[Black "Danielian, Elina"]
[Result "1-0"]
[TimeControl "40/90 + 30 + 30s/move"]
[WhiteFideId "35006916"]
[BlackFideId "13300210"]
[WhiteElo "2408"]
[BlackElo "2416"]

1. e4 {[%clk 01:30:58]} {[%emt 00:00:01]} d6 {[%clk 01:30:42]} {[%emt
00:00:19]} 2. d4 {[%clk 01:31:24]} {[%emt 00:00:05]} g6 {[%clk 01:30:54]}
{[%emt 00:00:17]} 3. Nc3 {[%clk 01:31:49]} {[%emt 00:00:05]} Bg7 {[%clk
01:31:13]} {[%emt 00:00:11]} 4. Be3 {[%clk 01:32:12]} {[%emt 00:00:07]} a6
{[%clk 01:31:39]} {[%emt 00:00:04]} 5. Qd2 {[%clk 01:32:37]} {[%emt 00:00:05]}
Nd7 {[%clk 01:31:59]} {[%emt 00:00:10]} 6. f4 {[%clk 01:31:27]} {[%emt
00:01:40]} b5 {[%clk 01:32:25]} {[%emt 00:00:04]} 7. Nf3 {[%clk 01:22:41]}
{[%emt 00:09:15]} Bb7 {[%clk 01:32:34]} {[%emt 00:00:22]} 8. Bd3 {[%clk
01:22:27]} {[%emt 00:00:43]} Ngf6 {[%clk 01:27:47]} {[%emt 00:05:17]} 9. e5
{[%clk 01:16:24]} {[%emt 00:06:34]} b4 {[%clk 01:23:37]} {[%emt 00:04:39]} 10.
Ne2 {[%clk 01:14:13]} {[%emt 00:02:41]} Nd5 {[%clk 01:23:47]} {[%emt 00:00:21]}
11. Bf2 {[%clk 01:12:37]} {[%emt 00:02:06]} c5 {[%clk 01:16:11]} {[%emt
00:08:06]} 12. Be4 {[%clk 01:05:26]} {[%emt 00:07:41]} cxd4 {[%clk 01:09:56]}
{[%emt 00:06:44]} 13. exd6 {[%clk 01:01:15]} {[%emt 00:04:42]} N7f6 {[%clk
01:08:02]} {[%emt 00:02:24]} 14. Bxd5 {[%clk 00:53:18]} {[%emt 00:08:26]} Bxd5
{[%clk 01:08:29]} {[%emt 00:00:04]} 15. Qxb4 {[%clk 00:50:34]} {[%emt
00:03:15]} exd6 {[%clk 01:08:55]} {[%emt 00:00:04]} 16. Bxd4 {[%clk 00:48:14]}
{[%emt 00:02:50]} O-O {[%clk 01:07:47]} {[%emt 00:01:37]} 17. O-O {[%clk
00:44:58]} {[%emt 00:03:46]} Rb8 {[%clk 01:06:30]} {[%emt 00:01:47]} 18. Qd2
{[%clk 00:39:45]} {[%emt 00:05:43]} Re8 {[%clk 01:03:47]} {[%emt 00:03:12]} 19.
Ng3 {[%clk 00:38:19]} {[%emt 00:01:56]} Bc6 {[%clk 00:51:40]} {[%emt 00:12:38]}
20. f5 {[%clk 00:33:31]} {[%emt 00:05:18]} Rb7 {[%clk 00:49:21]} {[%emt
00:02:49]} 21. Rad1 {[%clk 00:29:04]} {[%emt 00:04:56]} Bb5 {[%clk 00:36:09]}
{[%emt 00:13:43]} 22. Rfe1 {[%clk 00:28:37]} {[%emt 00:00:57]} Rxe1+ {[%clk
00:36:14]} {[%emt 00:00:25]} 23. Rxe1 {[%clk 00:27:34]} {[%emt 00:01:32]} Bc6
{[%clk 00:36:34]} {[%emt 00:00:11]} 24. Qc3 {[%clk 00:19:55]} {[%emt 00:08:09]}
Bd5 {[%clk 00:35:27]} {[%emt 00:01:36]} 25. Qd3 {[%clk 00:20:15]} {[%emt
00:00:10]} Qa5 {[%clk 00:31:17]} {[%emt 00:04:40]} 26. Nd2 {[%clk 00:14:48]}
{[%emt 00:05:58]} Rb8 {[%clk 00:27:41]} {[%emt 00:04:06]} 27. a3 {[%clk
00:10:20]} {[%emt 00:04:58]} Bb7 {[%clk 00:25:15]} {[%emt 00:02:56]} 28. c4
{[%clk 00:08:56]} {[%emt 00:01:54]} Rc8 {[%clk 00:22:41]} {[%emt 00:03:04]} 29.
Rf1 {[%clk 00:05:08]} {[%emt 00:04:17]} Qd8 {[%clk 00:19:14]} {[%emt 00:03:58]}
30. h3 {[%clk 00:03:59]} {[%emt 00:01:39]} a5 {[%clk 00:18:20]} {[%emt
00:01:24]} 31. b4 {[%clk 00:04:13]} {[%emt 00:00:16]} axb4 {[%clk 00:17:24]}
{[%emt 00:01:26]} 32. axb4 {[%clk 00:04:42]} {[%emt 00:00:01]} Qe7 {[%clk
00:12:28]} {[%emt 00:05:26]} 33. Rf2 {[%clk 00:02:27]} {[%emt 00:02:44]} Qe1+
{[%clk 00:07:56]} {[%emt 00:05:02]} 34. Rf1 {[%clk 00:02:56]} {[%emt 00:00:02]}
Qe7 {[%clk 00:08:21]} {[%emt 00:00:05]} 35. Rf2 {[%clk 00:01:34]} {[%emt
00:01:51]} Qe1+ {[%clk 00:08:47]} {[%emt 00:00:04]} 36. Kh2 {[%clk 00:01:47]}
{[%emt 00:00:17]} Qe7 {[%clk 00:02:26]} {[%emt 00:06:51]} 37. Bc3 {[%clk
00:01:35]} {[%emt 00:00:43]} g5 {[%clk 00:01:47]} {[%emt 00:01:08]} 38. Re2
{[%clk 00:01:01]} {[%emt 00:01:05]} Qc7 {[%clk 00:02:10]} {[%emt 00:00:07]} 39.
Kh1 {[%clk 00:00:44]} {[%emt 00:00:47]} h6 {[%clk 00:02:25]} {[%emt 00:00:15]}
40. Bd4 {[%clk 00:00:33]} {[%emt 00:00:41]} Ra8 {[%clk 00:02:03]} {[%emt
00:00:52]} 41. Qb3 {[%clk 00:21:14]} {[%emt 00:09:50]} d5 {[%clk 00:22:02]}
{[%emt 00:10:31]} 42. Be5 {[%clk 00:14:36]} {[%emt 00:07:07]} dxc4 {[%clk
00:21:18]} {[%emt 00:01:13]} 43. Nxc4 {[%clk 00:13:32]} {[%emt 00:01:34]} Qd8
{[%clk 00:17:41]} {[%emt 00:04:07]} 44. Nd6 {[%clk 00:12:09]} {[%emt 00:01:54]}
Bd5 {[%clk 00:17:29]} {[%emt 00:00:42]} 45. Qd3 {[%clk 00:11:35]} {[%emt
00:01:04]} Bf8 {[%clk 00:05:24]} {[%emt 00:12:35]} 46. Qd4 {[%clk 00:07:37]}
{[%emt 00:04:28]} Ra6 {[%clk 00:00:38]} {[%emt 00:05:16]} 47. Nde4 {[%clk
00:06:29]} {[%emt 00:01:38]} Nxe4 {[%clk 00:00:36]} {[%emt 00:00:32]} 48. Nxe4
{[%clk 00:06:57]} {[%emt 00:00:02]} Qd7 {[%clk 00:00:36]} {[%emt 00:00:30]} 49.
Rd2 {[%clk 00:03:10]} {[%emt 00:04:17]} Qxf5 {[%clk 00:01:05]} {[%emt
00:00:01]} 50. Qxd5 {[%clk 00:03:39]} {[%emt 00:00:01]} Re6 {[%clk 00:01:32]}
{[%emt 00:00:04]} 51. Nf6+ {[%clk 00:04:06]} {[%emt 00:00:02]} Rxf6 {[%clk
00:01:57]} {[%emt 00:00:05]} 52. Bxf6 {[%clk 00:04:34]} {[%emt 00:00:02]} Qxf6
{[%clk 00:02:20]} {[%emt 00:00:07]} 53. b5 {[%clk 00:04:17]} {[%emt 00:00:46]}
g4 {[%clk 00:01:28]} {[%emt 00:01:22]} 54. Rd1 {[%clk 00:04:20]} {[%emt
00:00:27]} gxh3 {[%clk 00:00:35]} {[%emt 00:01:24]} 55. gxh3 {[%clk 00:04:49]}
Qh4 {[%clk 00:00:44]} {[%emt 00:00:21]} 56. Rg1+ {[%clk 00:04:21]} {[%emt
00:00:58]} Bg7 {[%clk 00:00:47]} {[%emt 00:00:27]} 57. Qg2 {[%clk 00:04:41]}
{[%emt 00:00:09]} 1-0

[Event "FIDE Women's Grand Swiss 2023"]
[Site "Villa Marina, Douglas, Isle of Man, Isle Of Man"]
[Date "2023.11.03"]
[Round "9.21"]
[White "Mkrtchyan, Mariam"]
[Black "Hoang, Thanh Trang"]
[Result "1-0"]
[TimeControl "40/90 + 30 + 30s/move"]
[WhiteFideId "13310828"]
[BlackFideId "12400149"]
[WhiteElo "2343"]
[BlackElo "2398"]

1. Nf3 {[%clk 01:30:57]} {[%emt 00:00:02]} f5 {[%clk 01:30:32]} {[%emt
00:00:28]} 2. g3 {[%clk 01:31:19]} {[%emt 00:00:08]} Nf6 {[%clk 01:30:49]}
{[%emt 00:00:14]} 3. Bg2 {[%clk 01:31:44]} {[%emt 00:00:04]} g6 {[%clk
01:30:54]} {[%emt 00:00:25]} 4. d4 {[%clk 01:31:23]} {[%emt 00:00:52]} Bg7
{[%clk 01:31:06]} {[%emt 00:00:17]} 5. O-O {[%clk 01:31:26]} {[%emt 00:00:27]}
O-O {[%clk 01:31:20]} {[%emt 00:00:17]} 6. c4 {[%clk 01:31:55]} {[%emt
00:00:02]} d6 {[%clk 01:31:27]} {[%emt 00:00:21]} 7. Nc3 {[%clk 01:32:18]}
{[%emt 00:00:07]} c6 {[%clk 01:31:05]} {[%emt 00:00:52]} 8. Qc2 {[%clk
01:32:42]} {[%emt 00:00:07]} Na6 {[%clk 01:30:08]} {[%emt 00:01:27]} 9. Rb1
{[%clk 01:33:07]} {[%emt 00:00:05]} Qe8 {[%clk 01:27:25]} {[%emt 00:03:12]} 10.
b4 {[%clk 01:32:28]} {[%emt 00:01:10]} Nc7 {[%clk 01:22:12]} {[%emt 00:05:42]}
11. b5 {[%clk 01:32:43]} {[%emt 00:00:15]} cxb5 {[%clk 01:17:57]} {[%emt
00:04:45]} 12. cxb5 {[%clk 01:32:59]} {[%emt 00:00:16]} Kh8 {[%clk 01:15:38]}
{[%emt 00:02:48]} 13. a4 {[%clk 01:32:10]} {[%emt 00:01:19]} Rb8 {[%clk
01:12:57]} {[%emt 00:03:11]} 14. Ba3 {[%clk 01:27:41]} {[%emt 00:04:59]} Be6
{[%clk 01:09:19]} {[%emt 00:04:07]} 15. Ng5 {[%clk 01:24:54]} {[%emt 00:03:17]}
Bg8 {[%clk 01:06:11]} {[%emt 00:03:38]} 16. e4 {[%clk 01:20:49]} {[%emt
00:04:35]} fxe4 {[%clk 00:59:17]} {[%emt 00:07:24]} 17. Ncxe4 {[%clk 01:19:36]}
{[%emt 00:01:43]} Nxe4 {[%clk 00:58:38]} {[%emt 00:01:09]} 18. Qxe4 {[%clk
01:13:14]} {[%emt 00:06:53]} Bf6 {[%clk 00:48:41]} {[%emt 00:10:26]} 19. Rfc1
{[%clk 01:03:56]} {[%emt 00:09:48]} Bd5 {[%clk 00:35:17]} {[%emt 00:13:53]} 20.
Qh4 {[%clk 00:59:51]} {[%emt 00:04:36]} Bxg5 {[%clk 00:34:21]} {[%emt
00:01:26]} 21. Qxg5 {[%clk 01:00:19]} {[%emt 00:00:03]} Qf7 {[%clk 00:33:55]}
{[%emt 00:00:55]} 22. f4 {[%clk 00:48:09]} {[%emt 00:12:40]} Bxg2 {[%clk
00:27:15]} {[%emt 00:07:10]} 23. Rxc7 {[%clk 00:48:35]} {[%emt 00:00:05]} Be4
{[%clk 00:17:19]} {[%emt 00:10:26]} 24. Rb2 {[%clk 00:40:38]} {[%emt 00:08:27]}
Rbc8 {[%clk 00:13:09]} {[%emt 00:04:40]} 25. Bxd6 {[%clk 00:39:38]} {[%emt
00:01:30]} Rxc7 {[%clk 00:12:53]} {[%emt 00:00:46]} 26. Bxc7 {[%clk 00:40:07]}
{[%emt 00:00:01]} Kg8 {[%clk 00:09:43]} {[%emt 00:03:39]} 27. Re2 {[%clk
00:29:54]} {[%emt 00:10:44]} Qb3 {[%clk 00:08:24]} {[%emt 00:01:49]} 28. Qe5
{[%clk 00:30:01]} {[%emt 00:00:23]} Bd5 {[%clk 00:07:29]} {[%emt 00:01:24]} 29.
Qxe7 {[%clk 00:23:03]} {[%emt 00:07:28]} Qd1+ {[%clk 00:07:09]} {[%emt
00:00:50]} 30. Kf2 {[%clk 00:22:30]} {[%emt 00:01:04]} Qxd4+ {[%clk 00:07:12]}
{[%emt 00:00:26]} 31. Qe3 {[%clk 00:22:46]} {[%emt 00:00:15]} Qxa4 {[%clk
00:06:01]} {[%emt 00:01:40]} 32. b6 {[%clk 00:19:03]} {[%emt 00:04:13]} axb6
{[%clk 00:06:04]} {[%emt 00:00:27]} 33. Bxb6 {[%clk 00:15:34]} {[%emt
00:04:00]} Bc4 {[%clk 00:04:13]} {[%emt 00:02:21]} 34. Qd4 {[%clk 00:13:34]}
{[%emt 00:02:30]} Qb3 {[%clk 00:03:11]} {[%emt 00:01:31]} 35. Rd2 {[%clk
00:06:22]} {[%emt 00:07:42]} Re8 {[%clk 00:03:12]} {[%emt 00:00:30]} 36. Ba5
{[%clk 00:06:10]} {[%emt 00:00:41]} Re7 {[%clk 00:00:41]} {[%emt 00:03:01]} 37.
Bc3 {[%clk 00:06:11]} {[%emt 00:00:29]} Kf8 {[%clk 00:00:42]} {[%emt 00:00:29]}
38. Rb2 {[%clk 00:04:55]} {[%emt 00:01:47]} Qa4 {[%clk 00:00:35]} {[%emt
00:00:37]} 39. Bb4 {[%clk 00:04:59]} {[%emt 00:00:25]} Re2+ {[%clk 00:00:33]}
1-0